Cogmind - Beta 13 @@@ ROGUE MODE // 2024.04.08 @ 00:40:57 Player: chexo4 Result: Destroyed by D-53 Grenadier with Mini Grenade Launcher Performance ------------- Evolutions (0) 0 Regions Visited (4) 800 Robots Destroyed (9) 45 Value Destroyed (62) 62 Prototype IDs (23) 460 Alien Tech Used (0) 0 Bonus (300) 300 TOTAL SCORE: 1667 Bonus ------- Aligned with FarCom 300 Cogmind --------- Core Integrity 0/250 Matter 225/300 Energy 99/100 System Corruption 0% Temperature Cool (0) Movement Rolling (100) Location -9/Mines Parts ------- > --- POWER (1) -------- (None) > --- PROPULSION (2) --- Compact Wheel > --- UTILITY (2) ------ Medium Storage Unit Seismic Detector > --- WEAPON (2) ------- (None) > --- INVENTORY (10) --- High-capacity Battery (250) Modified TNC Datajack Mining Laser Peak State ------------ > --- POWER ------------ Light Ion Engine > --- PROPULSION ------- Compact Wheel Compact Wheel > --- UTILITY ---------- Medium Storage Unit Seismic Detector > --- WEAPON ----------- Medium Laser Field Lobotomy Kit > --- INVENTORY -------- Light Ion Engine Compact Wheel High-capacity Battery Seismic Detector Seismic Detector EM Pulse Gun Medium Laser Grenade Launcher Datajack Mining Laser [Rating: 17] Favorites ----------- Power Light Ion Engine Engine Light Ion Engine Propulsion Compact Wheel Wheel Compact Wheel Utility Seismic Detector Device Seismic Detector Storage Medium Storage Unit Weapon Medium Laser Energy Gun Medium Laser Launcher Grenade Launcher Special Weapon Field Lobotomy Kit Build | -11 -10 -10 -10 -9 ------- Run | Yrd Mat Min Exi Min Slots Evolved . | . . . . . Power . | . . . . . Propulsion . | . . . . . Utility . | . . . . . Weapon . | . . . . . Parts Attached 19 | 8 1 . 2 8 Power 2 | 1 . . . 1 Engine 2 | 1 . . . 1 Core . | . . . . . Reactor . | . . . . . Propulsion 3 | 2 . . . 1 Treads . | . . . . . Leg . | . . . . . Wheel 3 | 2 . . . 1 Hover . | . . . . . Flight . | . . . . . Utility 4 | 2 1 . . 1 Device 2 | 1 . . . 1 Storage 2 | 1 1 . . . Processor . | . . . . . Hackware . | . . . . . Protection . | . . . . . Artifact . | . . . . . Weapon 10 | 3 . . 2 5 Energy Gun 7 | 3 . . 1 3 Energy Cannon . | . . . . . Ballistic Gun . | . . . . . Ballistic Cannon . | . . . . . Launcher 2 | . . . . 2 Special Weapon 1 | . . . 1 . Impact Weapon . | . . . . . Slashing Weapon . | . . . . . Piercing Weapon . | . . . . . Special Melee Weapon . | . . . . . Unidentified Prototypes 1 | . . . 1 . Parts Lost 9 | . . . . 9 Power 2 | . . . . 2 Propulsion 2 | . . . . 2 Utility 1 | . . . . 1 Weapon 4 | . . . . 4 Highest Loss Streak 5 | . . . . 5 To Critical Strikes . | . . . . . Average Slot Usage (%) 97 | . 100 100 99 86 Engine 13 | . 14 14 14 10 Wheel 27 | . 28 28 28 25 Device 13 | . 14 14 14 12 Storage 14 | . 14 14 14 14 Energy Gun 26 | . 28 28 27 21 Naked Turns . | . . . . . Heaviest Build 18 | 13 18 18 18 18 Greatest Support 32 | 32 32 32 32 32 Greatest Overweight (x) 4 | . . . . 4 Average Overweight (x) . | . . . . . Largest Inventory Capacity 10 | 8 10 10 10 10 Average Capacity 9 | 7 9 10 10 10 Most Carried 10 | 8 10 10 10 9 Average Carried 8 | 5 9 10 9 7 Final Capacity 10 | 8 10 10 10 10 Final Carried 10 | 8 10 10 9 4 Class Distribution -------------------- 100% | Mutant Dominant Class ---------------- Mutant | -10/Materials Mutant | -10/Mines Mutant | -10/Exiles Mutant | -9/Mines Resources | -11 -10 -10 -10 -9 ----------- Run | Yrd Mat Min Exi Min Matter Collected 320 | 280 . . . 40 Remotely . | . . . . . Salvage Created 308 | 224 . . . 84 Parts 21 | 19 . . . 2 Haulers Intercepted . | . . . . . Recyclers Shooed . | . . . . . Parts Field Recycled . | . . . . . Retrieved Matter . | . . . . . Parts Self-Destructed . | . . . . . Prevented . | . . . . . Kills | -11 -10 -10 -10 -9 ------- Run | Yrd Mat Min Exi Min Combat Hostiles Destroyed 7 | . . . . 7 Guns 3 | . . . . 3 AOE 4 | . . . . 4 Classes Destroyed 3 | 2 . . . 1 Tunneler 8 | 7 . . . 1 Recycler 1 | 1 . . . . Assembled 7 | . . . . 7 Best Kill Streak 6 | 3 . . . 6 Combat Bots Only 5 | . . . . 5 Max Kills in Single Turn 1 | 1 . . . 1 Gunslinging . | . . . . . Exploded 1 | . . . . 1 Melee . | . . . . . Uniques/NPCs Destroyed . | . . . . . Combat | -11 -10 -10 -10 -9 -------- Run | Yrd Mat Min Exi Min Hostile Shots Fired 41 | . . . . 41 Missed 9 | . . . . 9 Damage Taken 792 | . . . . 792 Core 255 | . . . . 255 Absorbed by Shields . | . . . . . Core Remaining (%) 100 | 100 . . . . Volleys Fired 40 | 17 . . . 23 Largest 2 | 2 . . . 2 Hottest 100 | 100 . . . 100 Shots Fired 73 | 34 . . . 39 Gun 68 | 34 . . . 34 Cannon . | . . . . . Launcher 5 | . . . . 5 Special . | . . . . . Kinetic . | . . . . . Thermal 60 | 34 . . . 26 Explosive 5 | . . . . 5 Electromagnetic 8 | . . . . 8 Robot Hit Streak 9 | 9 . . . 5 Robot Miss Streak 4 | 1 . . . 4 Penetration Max . | . . . . . Secondary Targets 1 | . . . . 1 Max Gunslinging Chain 1 | . . . . 1 Shots Hit Robots 38 | 22 . . . 16 Core Hits 23 | 9 . . . 14 Critical Kills . | . . . . . Critical Parts Destroyed . | . . . . . Critical Strikes . | . . . . . Melee Attacks . | . . . . . Impact . | . . . . . Slashing . | . . . . . Piercing . | . . . . . Sneak Attacks . | . . . . . Combat Hostiles . | . . . . . Follow-up Attacks . | . . . . . Damage Inflicted 705 | 287 . . . 418 Guns 465 | 287 . . . 178 Cannons . | . . . . . Explosions 240 | . . . . 240 Melee . | . . . . . Ramming . | . . . . . Kinetic . | . . . . . Thermal 401 | 287 . . . 114 Explosive 240 | . . . . 240 Electromagnetic 64 | . . . . 64 Impact . | . . . . . Slashing . | . . . . . Piercing . | . . . . . Highest Corruption . | . . . . . Average Corruption . | . . . . . Corruption Purged . | . . . . . Corruption Blocked . | . . . . . Overload Shots . | . . . . . Overflow Damage 3 | . . . . 3 Projectiles . | . . . . . Explosions 3 | . . . . 3 Melee . | . . . . . Knockbacks . | . . . . . Impact . | . . . . . Kinetic . | . . . . . Secondary . | . . . . . Self-Inflicted Damage 81 | . . . . 81 Shots 3 | . . . . 3 Rammed . | . . . . . Targets Rammed . | . . . . . Kicked . | . . . . . Crushed . | . . . . . Highest Temperature 397 | 117 . . . 397 Average Temperature 100 | 40 . . . 146 Received Heat Transfer 300 | . . . . 300 Effects 2 | . . . . 2 Shutdowns 1 | . . . . 1 Energy Bleed 1 | . . . . 1 Siege Activations . | . . . . . Robots Corrupted . | . . . . . Combat Hostiles . | . . . . . Parts Fried . | . . . . . Impact Corruptions . | . . . . . Robots Melted . | . . . . . Combat Hostiles . | . . . . . Parts Melted 1 | 1 . . . . Heat Transferred 1184 | 851 . . . 333 Parts Sabotaged . | . . . . . Parts Stolen . | . . . . . Parts Stripped . | . . . . . Power Chain Reactions . | . . . . . Alert | -11 -10 -10 -10 -9 ------- Run | Yrd Mat Min Exi Min Peak Influence 40 | 40 26 9 . 36 Initial 26 | . 26 9 . . Average 15 | 20 26 9 . 6 Maximum Alert Level . | . . . . . Low Security (%) 100 | 100 100 100 . 100 Level 1 . | . . . . . Level 2 . | . . . . . Level 3 . | . . . . . Level 4 . | . . . . . Level 5 . | . . . . . High Security . | . . . . . Max Security . | . . . . . Squads Dispatched . | . . . . . Investigation . | . . . . . Extermination . | . . . . . Reinforcement . | . . . . . Assault . | . . . . . Garrison . | . . . . . Intercept . | . . . . . Searches Triggered . | . . . . . Construction Impeded . | . . . . . Haulers Reinforced . | . . . . . Active Scanning Responses . | . . . . . Cargo Convoy Interrupts . | . . . . . Stealth | -11 -10 -10 -10 -9 --------- Run | Yrd Mat Min Exi Min Distress Signals . | . . . . . Communications Jammed . | . . . . . Distress Signals . | . . . . . Times Spotted 9 | . . . . 9 Peak Tracking Total 3 | . . . . 3 Tactical Retreats . | . . . . . Traps | -11 -10 -10 -10 -9 ------- Run | Yrd Mat Min Exi Min Traps Triggered . | . . . . . Indirectly . | . . . . . Trap Hack Attempts . | . . . . . Triggered . | . . . . . Disarmed . | . . . . . Reprogrammed . | . . . . . Reused . | . . . . . Traps Extracted . | . . . . . Installed . | . . . . . Triggered . | . . . . . Machines | -11 -10 -10 -10 -9 ---------- Run | Yrd Mat Min Exi Min Machines Disabled . | . . . . . Max in Single Turn . | . . . . . Machines Repaired . | . . . . . Machines Dismantled . | . . . . . Machines Sabotaged . | . . . . . Overloaded Fab Kills . | . . . . . Hacking | -11 -10 -10 -10 -9 --------- Run | Yrd Mat Min Exi Min Machines Accessed 6 | . . . 5 1 Terminals 1 | . . . . 1 Fabricators . | . . . . . Repair Stations . | . . . . . Recycling Units . | . . . . . Scanalyzers . | . . . . . Garrison Access . | . . . . . Total Hacks 53 | . . . 50 3 Successful 52 | . . . 50 2 Failed 1 | . . . . 1 Catastrophic 1 | . . . . 1 Database Lockouts . | . . . . . Manual 4 | . . . 2 2 Terminals 3 | . . . . 3 Fabricators . | . . . . . Repair Stations . | . . . . . Recycling Units . | . . . . . Scanalyzers . | . . . . . Garrison Access . | . . . . . Terminal Hacks 52 | . . . 50 2 Record 49 | . . . 49 . Terminal Index 1 | . . . . 1 Zone Layout 1 | . . . . 1 Derelict Proto ID Bank 1 | . . . 1 . Fabricator Hacks . | . . . . . Repair Station Hacks . | . . . . . Recycling Unit Hacks . | . . . . . Scanalyzer . | . . . . . Garrison Access Hacks . | . . . . . Unauthorized Hacks . | . . . . . Terminals . | . . . . . Fabricators . | . . . . . Repair Stations . | . . . . . Recycling Units . | . . . . . Scanalyzers . | . . . . . Garrison Access . | . . . . . Data Cores Recovered . | . . . . . Used . | . . . . . Hacking Detections 1 | . . . . 1 Full Trace Events . | . . . . . Feedback Events . | . . . . . Feedback Blocked . | . . . . . Robot Schematics Acquired . | . . . . . Robots Built . | . . . . . Authchips . | . . . . . Time . | . . . . . Total Robot Build Rating . | . . . . . Part Schematics Acquired . | . . . . . Parts Built . | . . . . . Authchips . | . . . . . Time . | . . . . . Total Part Build Rating . | . . . . . Parts Repaired . | . . . . . Time . | . . . . . Parts Recycled . | . . . . . Recycled Matter . | . . . . . Retrieved Matter . | . . . . . Retrieved Components . | . . . . . Parts Scanalyzed . | . . . . . Part Schematics Acquired . | . . . . . Parts Damaged . | . . . . . Bothacking | -11 -10 -10 -10 -9 ------------ Run | Yrd Mat Min Exi Min Used RIF Installer . | . . . . . Robots Hacked . | . . . . . Non-combat . | . . . . . Combat . | . . . . . Robot Hacks Applied . | . . . . . Relay Couplers Released . | . . . . . Fabnet Peak Effective % . | . . . . . Robots Rewired . | . . . . . Allies Hacked . | . . . . . Hacks Repelled . | . . . . . Allies | -11 -10 -10 -10 -9 -------- Run | Yrd Mat Min Exi Min Total Allies . | . . . . . Largest Group . | . . . . . Highest-Rated Group . | . . . . . Highest-Rated Ally . | . . . . . Total Orders . | . . . . . Ally Attacks . | . . . . . Total Damage . | . . . . . Kills . | . . . . . Allies Corrupted . | . . . . . Allies Melted 1 | . . . . 1 Intel | -11 -10 -10 -10 -9 ------- Run | Yrd Mat Min Exi Min Robot Analysis Total . | . . . . . Derelict Logs Recovered 1 | . . . . 1 Drone Launches . | . . . . . Drone Recoveries . | . . . . . Exploration | -11 -10 -10 -10 -9 ------------- Run | Yrd Mat Min Exi Min Turns Passed 1595 | 287 79 43 928 258 Spaces Moved 1401 | 214 52 41 910 184 Core 6 | 4 . . . 2 Treads . | . . . . . Legs . | . . . . . Wheels 1395 | 210 52 41 910 182 Hover . | . . . . . Flight . | . . . . . Fastest Speed 50 | 50 100 100 100 100 Average Speed 100 | 99 100 100 100 101 Slowest Speed 250 | 100 100 100 100 250 Overloaded Moves . | . . . . . Propulsion Burnouts . | . . . . . Robots Hopped . | . . . . . Cave-ins Triggered . | . . . . . Exploration Rate (%) 32 | 7 10 12 92 42 Regions Visited 4 Branch Regions 3 Pre-discovered Areas 1 | . . . 1 . Known Exits Taken . | . . . . . Unknown Exits Taken 4 | 1 1 1 1 . Scrap Searched . | . . . . . Spaces Dug . | . . . . . Terrain Destroyed 42 | . . . . 42 Melee . | . . . . . Projectile . | . . . . . AOE 42 | . . . . 42 Terrain Rammed . | . . . . . Walls Destroyed . | . . . . . Machines Disabled . | . . . . . Actions | -11 -10 -10 -10 -9 --------- Run | Yrd Mat Min Exi Min Total 1524 | 255 79 43 932 215 Wait 27 | . 24 3 . . Move 1397 | 213 51 40 909 184 Hop . | . . . . . Pick Up 28 | 16 2 . 10 . Fast Attach . | . . . . . Attach 13 | 7 . . 1 5 Detach . | . . . . . Swap 6 | 1 1 . 1 3 Drop 13 | 1 1 . 11 . Fire 40 | 17 . . . 23 Melee . | . . . . . Ram . | . . . . . Kick . | . . . . . Crush . | . . . . . Escape Stasis . | . . . . . Rewire . | . . . . . Trap . | . . . . . Miscellaneous . | . . . . . Route ------- -11/Scrapyard -10/Materials -10/Mines -10/Exiles -9/Mines History --------- Turn | Location | Event 26 | -11/Scrapyard | Discovered new exit (range 16) 288 | -11/Scrapyard | Entered Materials 326 | -10/Materials | Build established: Mutant 352 | -10/Materials | Discovered new exit (range 15) 367 | -10/Materials | Entered Mines 403 | -10/Mines | Deemed a non-threat by the Exiles lab entrance 404 | -10/Mines | Discovered new exit (range 5) 410 | -10/Mines | Entered Exiles 447 | -10/Exiles | Met 8R-AWN 466 | -10/Exiles | Met EX-HEX 507 | -10/Exiles | Met EX-DEC 534 | -10/Exiles | Visited The Gauntlet 711 | -10/Exiles | Learned location of Zion (-7) 860 | -10/Exiles | Met EX-BIN 882 | -10/Exiles | Aligned with FarCom system 883 | -10/Exiles | Given EX-Vault access code 944 | -10/Exiles | Opened EX-Vault 955 | -10/Exiles | Found Prototype Processor 959 | -10/Exiles | Found Prototype Special Weapon 960 | -10/Exiles | Identified Field Lobotomy Kit 979 | -10/Exiles | Found Army-in-a-Box 999 | -10/Exiles | Warned to stay clear of 0b10 Research branches 1112 | -10/Exiles | Discovered new exit (range 12) 1338 | -10/Exiles | Left Exiles lab with Modified TNC 1338 | -10/Exiles | Entered Mines 1414 | -9/Mines | Assembled infested the area 1419 | -9/Mines | Assisted by a Guerilla fighting off Assembled 1536 | -9/Mines | Learned 4 Materials zone layouts 1566 | -9/Mines | Core integrity fell below 50% 1572 | -9/Mines | Core integrity fell below 20% 1592 | -9/Mines | Lost 5 parts (1p2n2w) 1596 | -9/Mines | Destroyed by D-53 Grenadier with Mini Grenade Launcher Last Messages --------------- Acquired 20 matter. Overheating: Energy bleed (-24). Acquired 20 matter. Acquired derelict log, extracted data. Data stored: Materials zone layouts (x4). The unstable cave ceiling collapses. K-01 Serf collects debris. U-05 Engineer lays Concrete. K-01 Serf collects debris. Lgt. Ion Engine destroyed. Com. Wheel destroyed. K-01 Serf collects debris. Com. Wheel destroyed. K-01 Serf collects debris. Med. Laser destroyed. The unstable cave ceiling collapses. K-01 Serf collects debris. The unstable cave ceiling collapses. K-01 Serf destroyed. The unstable cave ceiling collapses. Map ----- +----------------------------------------------------+ | ?????????????# ######?# # | | ?????????????# ### # | | ?????????????# # | | ?????????????## | | ????????????### # # # | | ???????????## # # | | ???????????# # | | ???????????# # | | ???????????# | | ???????????# # | | ???????????# # | | ???????????# ## | | ?????????### # # | | ?????????# # ### | | ????????## ##?# | | ????????# ##??## | | ??######## #?????# | | ??# ###??????## | | ??# ###?????????? | | ??#d######### #???????????? | | ??# #????????##????????????? | | ??# #??????????????????????? | | ??# #??????????????????????? | | ??# #??????????????????????? | | ??# #??????????????????????? | | ??#@#??????????????????????? | | ??# #??????????????????????? | | ??# #??????????????????????? | | ??# #??????????????????????? | | ??# #??????????????????????? | | ?? ??????????????????????? | | ?? ??????????????????????? | | ?? "??????????????????????? | | ?? "??????????????????????? | | ?? "??????????????????????? | | ?? ??????????????????????? | | ?? "??????????????????????? | | ?? ???????????????????????? | | ?? ???????????????????????? | | ?? ???????????????????????? | | ??##???????????????????????? | | ???????????????????????????? | | | | | | | | | | | | | | | | | +----------------------------------------------------+ Best States ------------- Heat Dissipation 25 Energy Generation 10 Energy Capacity 125 Matter Stores 300 Matter Capacity 300 Sight Range 16 Terrain Scan Density 10 Evasion (%) 40 Item Schematics ----------------- None Robot Schematics ------------------ None Fabricated ------------ Nothing Alien Tech Used ----------------- None Achievements -------------- None Challenges ------------ None Game ------ Seed TachyonCryofiberExtractor Manual? 0 Play Time 00:17:24 Cumulative 15.2 hours Start 2024.04.08 @ 00:25:38 End 2024.04.08 @ 00:40:57 Sessions 1 Manual Loads 0 Difficulty Rogue Special Mode None Game No. 41 Rogue 41 Adventurer 0 Explorer 0 Win Type - Total 0 Types 0/0/0/0/0/0/0/0/0 Lore% 15 Gallery% 25 Achievement% 21 Wizard Run 0 Options --------- Layout 1 ASCII 0 Keyboard 0 Movement Arrows Keybinds 0 Fullscreen 2 Font 24/Smallcaps Map View 50x35 Zoom Use 0% Tactical HUD 0 Map Filters NONE Filters NONE Steam 1 RUN: a6b0143a-f57e-4c94-8423-0bed8b4a5001